fUSD/lending_fUSD_20250610
["ID","MTS","AMOUNT","RATE_DAILY","PERIOD"]
[365231265,1749558641084,-2038.17143837,0.00018038,2]
[365231267,1749558641094,-1680.0,0.00018053,2]
[365231269,1749558641103,-1093.59,0.00018082,2]
[365231271,1749558641113,-558.73,0.00018082,2]
[365231273,1749558641123,-490.0,0.00018082,2]
[365231275,1749558641132,-629.35,0.00018082,2]
[365231277,1749558641142,-1157.58,0.00018082,2]
[365231279,1749558641152,-1150.32,0.00018082,2]
[365231280,1749558641161,-2282.25,0.00018082,2]
[365231283,1749558641172,-572.92,0.00018082,2]
[365231285,1749558641181,-152.32,0.00018083,2]
[365231287,1749558641191,-362.0,0.00018091,5]
[365231289,1749558641201,-1516.99087426,0.000181,2]
[365231291,1749558641211,-697.93535559,0.0001811,2]
[365231293,1749558641220,-2038.17143837,0.00018141,2]
[365231295,1749558641230,-2038.17143837,0.00018245,2]
[365231297,1749558641240,-1093.59,0.00018246,2]
[365231299,1749558641250,-558.73,0.00018246,2]
[365231301,1749558641260,-490.0,0.00018246,2]
[365231303,1749558641269,-1157.58,0.00018246,2]
[365231305,1749558641279,-1150.32,0.00018246,2]
[365231307,1749558641290,-2282.25,0.00018246,2]
[365231309,1749558641299,-167.02,0.00018252,2]
[365231311,1749558641310,-945.0,0.00018294,2]
[365231313,1749558641319,-1163.59,0.000183,2]
[365231315,1749558641329,-170.69,0.000183,2]
[365231317,1749558641338,-170.69,0.000183,2]
[365231319,1749558641348,-152.0,0.00018316,6]
[365231321,1749558641357,-1052.51592562,0.00018326,2]
[365231323,1749558641367,-2038.17143837,0.00018348,2]
[365231325,1749558641377,-151.0,0.00018356,2]
[365231327,1749558641387,-6947.255451,0.00018356,2]
[365231329,1749558641396,-6947.255451,0.00018356,2]
[365231331,1749558641406,-151.0,0.00018356,2]
[365231333,1749558641416,-231.780223,0.00018356,2]
[365231335,1749558641426,-231.780223,0.00018356,2]
[365231337,1749558641435,-151.0,0.00018356,2]
[365231339,1749558641445,-151.0,0.00018356,2]
[365231341,1749558641455,-3815.82,0.00018356,2]
[365231343,1749558641466,-150.0,0.00018356,2]
[365231345,1749558641475,-150.27,0.00018356,2]
[365231347,1749558641485,-150.0,0.00018356,2]
[365231349,1749558641495,-637.0,0.00018384,2]
[365231351,1749558641506,-927.0,0.00018384,2]
[365231353,1749558641517,-590.0,0.00018384,2]
[365231355,1749558641527,-558.0,0.00018384,2]
[365231357,1749558641537,-1275.0,0.00018384,2]
[365231360,1749558641547,-2001.0,0.00018384,2]
[365231361,1749558641557,-1159.0,0.00018384,2]
[365231364,1749558641567,-428.784,0.00018384,2]
[365231366,1749558641577,-4085.0,0.00018384,2]
[365231367,1749558641588,-3330.0,0.00018384,2]
[365231369,1749558641598,-7064.0,0.00018384,2]
[365231372,1749558641607,-151.0,0.00018384,2]
[365231374,1749558641617,-151.0,0.00018384,2]
[365231376,1749558641626,-178.074336,0.00018384,2]
[365231378,1749558641636,-151.0,0.00018384,2]
[365231379,1749558641646,-169.214797,0.00018384,2]
[365231381,1749558641655,-173.05703,0.00018384,2]
[365231383,1749558641664,-224.802069,0.00018384,2]
[365231385,1749558641674,-173.05703,0.00018384,2]
[365231388,1749558641683,-543.45654,0.00018384,2]
[365231390,1749558641693,-543.45654,0.00018384,2]
[365231391,1749558641702,-151.0,0.00018384,2]
[365231394,1749558641712,-221.37175,0.00018384,2]
[365231396,1749558641722,-221.37175,0.00018384,2]
[365231398,1749558641732,-184.443,0.00018408,2]
[365231400,1749558641742,-1280.78,0.00018408,2]
[365231402,1749558641752,-1093.59,0.0001841,2]
[365231404,1749558641762,-558.73,0.0001841,2]
[365231405,1749558641772,-1157.58,0.0001841,2]
[365231408,1749558641782,-1150.32,0.0001841,2]
[365231410,1749558641792,-2282.25,0.0001841,2]
[365231411,1749558641801,-2038.17143837,0.00018452,2]
[365231413,1749558641812,-658.74703324,0.00018539,2]
[365231416,1749558641823,-362.0,0.00018541,6]
[365231417,1749558641832,-2038.17143837,0.00018555,2]
[365231420,1749558641842,-558.73,0.00018575,2]
[365231422,1749558641852,-1157.58,0.00018575,2]
[365231424,1749558641862,-1150.32,0.00018575,2]
[365231426,1749558641874,-2282.25,0.00018575,2]
[365231428,1749558641887,-152.0,0.00018598,7]
[365231430,1749558641896,-461.25,0.00018603,2]
[365231431,1749558641907,-843.439842,0.0001862,2]
[365231432,1749558641917,-2038.17143837,0.00018659,2]
[365231433,1749558641930,-804.07,0.00018667,2]
[365231434,1749558641940,-867.72711631,0.00018671,2]
[365231435,1749558641951,-1000.0,0.00018676,2]
[365231436,1749558641962,-3263.27554063,0.000187,2]
[365231437,1749558641972,-558.73,0.00018739,2]
[365231438,1749558641982,-1157.58,0.00018739,2]
[365231440,1749558641992,-1150.32,0.00018739,2]
[365231442,1749558642002,-2282.25,0.00018739,2]
[365231444,1749558642012,-2038.17143837,0.00018762,2]
[365231446,1749558642022,-500.0,0.00018847,2]
[365231448,1749558642032,-500.0,0.00018848,2]
[365231450,1749558642042,-151.0,0.00018848,2]
[365231453,1749558642052,-200.0,0.00018849,2]
[365231455,1749558642062,-200.0,0.00018849,2]
[365231456,1749558642072,-1000.0,0.0001885,2]
[365231459,1749558642083,-10960.55072773,0.00018855,2]
[365231461,1749558642092,-200.0,0.00018858,2]
[365231463,1749558642102,-200.0,0.0001886,2]
[365231465,1749558642111,-528.08619635,0.00018861,2]
[365231466,1749558642121,-11597.78158874,0.00018863,2]
[365231468,1749558642131,-5867.6244038,0.00018864,2]
[365231471,1749558642141,-2038.17143837,0.00018866,2]
[365231472,1749558642150,-5867.6244038,0.0001887,2]
[365231474,1749558642160,-309.00777095,0.0001887,2]
[365231477,1749558642170,-597.43715115,0.0001887,2]
[365231479,1749558642180,-1463.11139052,0.00018872,2]
[365231481,1749558642190,-11597.78158874,0.00018877,2]
[365231482,1749558642199,-152.0,0.00018881,8]
[365231485,1749558642211,-2640.43098171,0.00018892,2]
[365231487,1749558642221,-1463.11139052,0.00018896,2]
[365231489,1749558642231,-10960.55072773,0.00018897,2]
[365231491,1749558642240,-14201.3652107,0.00018899,2]
[365231493,1749558642251,-151.0,0.000189,2]
[365231495,1749558642261,-6947.255451,0.000189,2]
[365231497,1749558642272,-6947.255451,0.000189,2]
[365231499,1749558642282,-151.0,0.000189,2]
[365231501,1749558642291,-231.780223,0.000189,2]
[365231503,1749558642301,-231.780223,0.000189,2]
[365231505,1749558642311,-152.52053846,0.000189,2]
[365231507,1749558642320,-1000.0,0.000189,2]
[365231509,1749558642330,-558.73,0.00018904,2]
[365231511,1749558642340,-1157.58,0.00018904,2]
[365231513,1749558642350,-1150.32,0.00018904,2]
[365231515,1749558642359,-151.0,0.00018904,2]
[365231517,1749558642369,-173.05703,0.00018904,2]
[365231519,1749558642379,-173.05703,0.00018904,2]
[365231521,1749558642388,-543.45654,0.00018904,2]
[365231523,1749558642398,-543.45654,0.00018904,2]
[365231525,1749558642407,-151.0,0.00018904,2]
[365231527,1749558642417,-2282.25,0.00018904,2]
[365231529,1749558642426,-500.0,0.00018904,2]
[365231531,1749558642436,-500.0,0.00018904,2]
[365231533,1749558642446,-309.00777095,0.00018916,2]
[365231535,1749558642456,-528.08619635,0.00018918,2]
[365231537,1749558642466,-3185.02668178,0.00018933,2]
[365231539,1749558642476,-2640.43098171,0.00018945,2]
[365231541,1749558642485,-309.00777095,0.00018953,2]
[365231543,1749558642495,-210.0,0.0001896,2]
[365231545,1749558642506,-212.0,0.0001896,2]
[365231547,1749558642515,-150.0,0.00018961,3]
[365231549,1749558642526,-151.0,0.00018961,2]
[365231551,1749558642535,-200.0,0.00018961,2]
[365231553,1749558642545,-281.884335,0.00018962,2]
[365231555,1749558642555,-151.0,0.00018962,2]
[365231557,1749558642564,-151.0,0.00018962,2]
[365231559,1749558642574,-25803.17688823,0.00018963,2]
[365231561,1749558642583,-2640.43098171,0.00018967,2]
[365231563,1749558642593,-2038.17143837,0.00018969,2]
[365231565,1749558642603,-11597.78158874,0.00018971,2]
[365231568,1749558642613,-500.0,0.00018973,2]
[365231570,1749558642622,-500.0,0.00018973,2]
[365231572,1749558642632,-500.0,0.00018973,2]
[365231574,1749558642641,-579.05348255,0.00018973,2]
[365231576,1749558642651,-500.0,0.00018973,2]
[365231578,1749558642660,-500.0,0.00018973,2]
[365231580,1749558642670,-500.0,0.00018973,2]
[365231582,1749558642679,-500.0,0.00018973,2]
[365231584,1749558642689,-500.0,0.00018973,2]
[365231586,1749558642699,-500.0,0.00018973,2]
[365231588,1749558642708,-152.42765538,0.00018973,2]
[365231590,1749558642717,-150.0,0.00018973,2]
[365231592,1749558642728,-475.57,0.00018973,2]
[365231594,1749558642738,-151.0,0.00018973,2]
[365231596,1749558642747,-150.0,0.00018973,2]
[365231598,1749558642757,-150.0,0.00018973,2]
[365231599,1749558642766,-150.0,0.00018973,2]
[365231601,1749558642776,-150.0,0.00018973,2]
[365231603,1749558642786,-150.56667008,0.00018973,2]
[365231604,1749558642796,-150.0,0.00018973,2]
[365231606,1749558642806,-221.37175,0.00018973,2]
[365231608,1749558642815,-221.37175,0.00018973,2]
[365231609,1749558642825,-150.0,0.00018973,2]
[365231611,1749558642835,-150.54724075,0.00018973,2]
[365231613,1749558642844,-150.0,0.00018973,2]
[365231614,1749558642854,-150.0,0.00018973,2]
[365231616,1749558642864,-150.0,0.00018973,2]
[365231618,1749558642874,-150.0,0.00018973,2]
[365231619,1749558642887,-150.0,0.00018973,2]
[365231621,1749558642897,-150.0,0.00018973,2]
[365231623,1749558642906,-150.0,0.00018973,2]
[365231625,1749558642917,-487.90700677,0.00018976,2]
[365231626,1749558642926,-350.0,0.00018981,2]
[365231628,1749558642936,-182.87005665,0.00018981,2]
[365231630,1749558642946,-242.8,0.00018986,2]
[365231631,1749558642956,-300.0,0.00018989,2]
[365231633,1749558642967,-13302.85411541,0.0001899,2]
[365231635,1749558642977,-151.0,0.0001899,2]
[365231637,1749558642987,-306.41126273,0.0001899,2]
[365231639,1749558642997,-166.12461314,0.00018991,2]
[365231640,1749558643006,-25292.9651878,0.00018991,2]
[365231642,1749558643015,-25803.17688823,0.00018991,2]
[365231645,1749558643026,-5867.6244038,0.00018991,2]
[365231647,1749558643036,-362.0,0.00018992,6]
[365231648,1749558643046,-3185.02668178,0.00018993,2]
[365231650,1749558643056,-487.90700677,0.00018994,2]
[365231652,1749558643066,-10960.55072773,0.00018997,2]
[365231654,1749558643076,-173.05703,0.00018999,2]
[365231656,1749558643086,-173.05703,0.00018999,2]
[365231658,1749558643096,-543.45654,0.00018999,2]
[365231660,1749558643107,-543.45654,0.00018999,2]
[365231662,1749558643116,-151.0,0.00018999,2]
[365231682,1749558643342,-221.37175,0.00018999,2]
[365231683,1749558643352,-221.37175,0.00018999,2]
[365231685,1749558643361,-6947.255451,0.00018999,2]
[365231687,1749558643371,-6947.255451,0.00018999,2]
[365231689,1749558643380,-151.0,0.00018999,2]
[365231691,1749558643389,-231.780223,0.00018999,2]
[365231692,1749558643399,-231.780223,0.00018999,2]
[365231694,1749558643408,-666.0,0.00018999,2]
[365231696,1749558643417,-300.0,0.00018999,2]
[365231698,1749558643427,-3185.02668178,0.00018999,2]
[365231699,1749558643436,-66431.27434586,0.00019,15]
[365231701,1749558643446,-75182.37743225,0.00019,2]
[365231704,1749558643463,-8217.41239957,0.00019,2]
[365231706,1749558643477,-685.81738726,0.00019,2]
[365231708,1749558643488,-4696.01978059,0.00019,2]
[365231715,1749558643562,-490.0,0.00016438,2]
[365231716,1749558643571,-365.69154277,0.00016602,2]
[365231719,1749558643591,-149.24845723,0.00016602,2]
[365231721,1749558643601,-223.78306179,0.00019,2]
[365231995,1749558646114,-490.0,0.00016438,2]
[365231997,1749558646125,-470.0,0.00016602,2]
[365231999,1749558646135,-182.1561604,0.0001693,2]
[365232001,1749558646145,-160.7993603,0.0001693,2]
[365232003,1749558646155,-184.76051148,0.0001693,2]
[365232005,1749558646164,-347.40984607,0.00019,2]
[365232007,1749558646176,-886.025,0.00019,2]
[365232009,1749558646188,-2310.05808,0.00019,2]
[365232011,1749558646199,-275.58,0.00019,2]
[365232014,1749558646214,-275.96465481,0.00019,2]
[365232028,1749558646351,-3006.69213862,0.00019,2]
[365232030,1749558646363,-2136.9813382,0.00019,2]
[365232033,1749558646375,-2623.66314732,0.00019,2]
[365232037,1749558646410,-2120.42239598,0.00019,2]
[365232040,1749558646422,-8169.23266598,0.00019,2]
[365232042,1749558646433,-33058.70676196,0.00019,2]
[365232044,1749558646442,-5799.06479757,0.00019,2]
[365232046,1749558646454,-13285.7877851,0.00019,2]
[365232048,1749558646465,-283.35159998,0.00019,2]
[365232808,1749558724140,1226.37,0.0001436,2]
[365232809,1749558731814,362.0,0.00015387,2]
[365232810,1749558733431,150.0,0.0002,30]
[365232811,1749558806224,-161.85310669,0.00016064,2]
[365232812,1749558817738,-1333.0,0.00023233,120]
[365232813,1749558817773,-1000.0,0.0002465,120]
[365232814,1749558832543,1000.0,0.0002465,120]
[365232815,1749558839659,1701.0,0.0002465,120]
[365232816,1749558840211,1000.0,0.0002465,120]
[365232817,1749558848480,1000.0,0.0002465,120]
[365232818,1749558855220,150.0,0.0002,30]
[365232819,1749558855641,1000.0,0.0002465,120]
[365232820,1749558863464,1000.0,0.0002465,120]
[365232821,1749558871775,-1000.0,0.00038512,60]
[365232822,1749558871802,-1000.0,0.00038512,60]
[365232823,1749558871828,-1000.0,0.00038512,60]
[365232824,1749558871855,-1000.0,0.00038512,120]
[365232825,1749558871881,-702.00241715,0.00038512,60]
[365232826,1749558871908,-1000.0,0.00038512,60]
[365232827,1749558871934,-1000.0,0.00038512,60]
[365232828,1749558871962,-1000.0,0.00038512,60]
[365232829,1749558871987,-1000.0,0.00038512,60]
[365232830,1749558872017,-184.84414944,0.00038512,120]
[365232831,1749558872042,-949.11656357,0.00038512,90]
[365232832,1749558872070,-2867.87347496,0.00038512,120]
[365232833,1749558872100,-1033.04718048,0.00038512,120]
[365232834,1749558872129,-2415.19692427,0.00038512,120]
[365232835,1749558872155,-2360.0,0.00038512,120]
[365232836,1749558872184,-573.4850009,0.00038512,120]
[365232837,1749558872210,-486.02676527,0.00038512,120]
[365232838,1749558872235,-1511.44940864,0.00038512,120]
[365232839,1749558872261,-255.65278699,0.00038512,120]
[365232840,1749558872287,-1523.45050299,0.00038512,120]
[365232841,1749558872314,-2532.69705545,0.00038512,120]
[365232842,1749558872341,-231.12956181,0.00038512,120]
[365232843,1749558872368,-220.20865623,0.00038512,120]
[365232844,1749558872396,-1006.64191609,0.00038512,120]
[365232845,1749558872423,-1000.0629598,0.00038512,120]
[365232846,1749558872449,-373.40224964,0.00038512,120]
[365232847,1749558872475,-223.32085553,0.00038512,120]
[365232848,1749558872501,-852.18460529,0.00038512,120]
[365232849,1749558872526,-473.00219212,0.00038512,120]
[365232850,1749558872552,-189.16410752,0.00038512,120]
[365232851,1749558872577,-228.0022886,0.00038512,120]
[365232852,1749558872604,-2309.16580506,0.00038512,120]
[365232853,1749558872630,-3236.15088179,0.00038512,120]
[365232854,1749558872656,-270.17164599,0.00038512,120]
[365232855,1749558872682,-718.12225368,0.00038512,120]
[365232856,1749558872708,-2825.08198852,0.00038512,120]
[365232857,1749558872738,-285.73115142,0.00038512,120]
[365232858,1749558872764,-661.67013625,0.00038512,120]
[365232859,1749558872790,-1331.26257193,0.00038512,120]
[365232860,1749558872827,-1953.54682036,0.00038512,120]
[365232861,1749558872859,-4938.29994795,0.00038512,60]
[365232862,1749558872888,-215.18804113,0.00038512,120]
[365232863,1749558872915,-216.41674709,0.00038512,120]
[365232864,1749558872943,-568.27392025,0.00038512,120]
[365232865,1749558872971,-1007.49791785,0.00038512,120]
[365232866,1749558873002,-1734.77080689,0.00038512,120]
[365232867,1749558873030,-1305.53425736,0.00038512,120]
[365232868,1749558873058,-193532.93637284,0.00038512,60]
[365232869,1749558873086,-1982.89956041,0.00038512,120]
[365232870,1749558873114,-447.88837593,0.00038512,120]
[365232871,1749558873145,-192.87010155,0.00038512,120]
[365232872,1749558873173,-2617.61912481,0.00038512,120]
[365232873,1749558873203,-436.90614695,0.00038512,60]
[365232874,1749558873231,-232.01714865,0.00038512,120]
[365232875,1749558873259,-1093.26143973,0.00038512,120]
[365232876,1749558873288,-172.26421785,0.00038512,120]
[365232877,1749558873316,-172.26421785,0.00038512,120]
[365232878,1749558873351,-172.26421785,0.00038512,120]
[365232879,1749558873381,-172.26421785,0.00038512,120]
[365232880,1749558873410,-172.26421785,0.00038512,120]
[365232881,1749558873437,-172.26421784,0.00038512,120]
[365232882,1749558873467,-10000.0,0.00038512,120]
[365232883,1749558873495,-623723.0,0.00038512,60]
[365232884,1749558873522,-286.0,0.00038512,120]
[365232885,1749558873553,-7563.0,0.00038512,120]
[365232886,1749558873581,-4002.51405255,0.00038512,120]
[365232887,1749558873614,-5000.0,0.00038512,120]
[365232888,1749558873661,-5000.0,0.00038512,120]
[365232889,1749558873689,-5000.0,0.00038512,120]
[365232890,1749558873716,-5000.0,0.00038512,120]
[365232891,1749558873744,-5000.0,0.00038512,120]
[365232892,1749558873772,-5000.0,0.00038512,120]
[365232893,1749558873800,-5000.0,0.00038512,120]
[365232894,1749558873827,-5000.0,0.00038512,120]
[365232895,1749558873854,-2482.0,0.00038512,120]
[365232896,1749558873886,-3039.91735592,0.00038512,120]
[365232897,1749558873916,-699.92704961,0.00038512,120]
[365232898,1749558873945,-2000.0,0.00038512,120]
[365232899,1749558873975,-2000.0,0.00038512,120]
[365232900,1749558874317,-2000.0,0.00038512,120]
[365232901,1749558874347,-1616.0,0.00038512,120]
[365232902,1749558874377,-5000.0,0.00038512,120]
[365232903,1749558874405,-150.0,0.00038512,120]
[365232904,1749558874432,-155.54777276,0.00038512,60]
[365232905,1749558874461,-54004.65088233,0.00038512,90]
[365232906,1749558874488,-203.0,0.00038512,120]
[365232907,1749558874515,-172.07507864,0.00038512,120]
[365232908,1749558874541,-182.13363253,0.00038512,120]
[365232909,1749558874568,-3985381.40408144,0.00038512,60]
[365232910,1749558874764,1000.0,0.0002465,120]
[365232911,1749558875006,2261.1955033,0.00024658,120]
[365232912,1749558882086,1000.0,0.0002465,120]
[365232913,1749558882971,-4000000.0,0.00038512,60]
[365232914,1749558887248,-4000000.0,0.00038512,60]
[365232915,1749558888880,1000.0,0.0002465,120]
[365232916,1749558891277,-4000000.0,0.00038512,60]
[365232917,1749558895530,1000.0,0.0002465,120]
[365232918,1749558899949,1295.0,0.0002465,120]
[365232919,1749558900789,1549.0,0.0002465,120]
[365232920,1749558901627,1441.0,0.0002465,120]
[365232921,1749558902218,1000.0,0.0002465,120]
[365232922,1749558903237,159.18825543,0.00024658,120]
[365232923,1749558908770,-618632.63591856,0.00038512,60]
[365232924,1749558908799,-2609.0,0.00038512,120]
[365232925,1749558908827,-991.74693612,0.00038512,120]
[365232926,1749558908854,-1000.0,0.00038512,60]
[365232927,1749558908883,-9498.54466409,0.00038512,120]
[365232928,1749558908911,-13885.0,0.00038512,60]
[365232929,1749558908938,-180000.0,0.00038512,120]
[365232930,1749558908966,-8362.33664296,0.00038512,120]
[365232931,1749558908992,-1098.07960265,0.00038512,120]
[365232932,1749558909256,-274923.5632802,0.00038512,120]
[365232933,1749558909286,-316096.60507209,0.00038512,120]
[365232934,1749558909314,-1044874.26018608,0.00038512,60]
[365232935,1749558909343,-188.0,0.00038512,120]
[365232936,1749558909371,-150.58820787,0.00038512,60]
[365232937,1749558909399,-528.0,0.00038512,60]
[365232938,1749558909426,-549.70093565,0.00038512,120]
[365232939,1749558909454,-22567.71266103,0.00038512,120]
[365232940,1749558909481,-10692.05128704,0.00038512,120]
[365232941,1749558909509,-270.81472433,0.00038512,120]
[365232942,1749558909537,-987.56262731,0.00038512,120]
[365232943,1749558909565,-2592.0,0.00038512,120]
[365232944,1749558909592,-347.83849505,0.00038512,120]
[365232945,1749558909620,-67745.27028191,0.00038512,120]
[365232946,1749558909647,-5981.5345199,0.00038512,120]
[365232947,1749558909674,-1107.7100506,0.00038512,120]
[365232948,1749558909702,-762.0,0.00038512,120]
[365232949,1749558909728,-43346.06930541,0.00038512,120]
[365232950,1749558909757,-32238.32100474,0.00038512,120]
[365232951,1749558909784,-601758.25933602,0.00038512,120]
[365232952,1749558909811,-3023.67691524,0.00038512,120]
[365232953,1749558909837,-1119.16551178,0.00038512,120]
[365232954,1749558909864,-856410.0,0.00038512,60]
[365232955,1749558909891,-10000.0,0.00038512,90]
[365232956,1749558909921,-10087.0,0.00038512,90]
[365232957,1749558909950,-34180.58,0.00038512,60]
[365232958,1749558909978,-10171.23420666,0.00038512,60]
[365232959,1749558910005,-8096.978599,0.00038512,120]
[365232960,1749558910038,-350.0,0.00038512,120]
[365232961,1749558910067,-163.0,0.00038512,120]
[365232962,1749558910095,-168.70110114,0.00038512,60]
[365232963,1749558910123,-11096.21206335,0.00038512,120]
[365232964,1749558910151,-1006.0132771,0.00038512,120]
[365232965,1749558910181,-159.0,0.00038512,120]
[365232966,1749558910209,-160.0,0.00038512,120]
[365232967,1749558910237,-185.633171,0.00038512,120]
[365232968,1749558910265,-435.45389721,0.00038512,120]
[365232969,1749558910292,-1694.9654496,0.00038512,120]
[365232970,1749558910320,-278.19152428,0.00038512,120]
[365232971,1749558910361,-407.86132048,0.00038512,90]
[365232972,1749558910388,-168.77062297,0.00038512,60]
[365232973,1749558910415,-239.16534678,0.00038512,60]
[365232974,1749558910441,-1812.99550765,0.00038512,120]
[365232975,1749558910476,-154.12226672,0.00038512,60]
[365232976,1749558910503,-1505.61235763,0.00038512,120]
[365232977,1749558910529,-605.14484843,0.00038512,120]
[365232978,1749558910558,-7368.54748555,0.00038512,120]
[365232979,1749558910586,-2216.48586187,0.00038512,120]
[365232980,1749558910612,-263.98047115,0.00038512,120]
[365232981,1749558910640,-1429.2918952,0.00038512,120]
[365232982,1749558910667,-1230.69336083,0.00038512,120]
[365232983,1749558910694,-2741.98751016,0.00038512,120]
[365232984,1749558910720,-370.0,0.00038512,120]
[365232985,1749558910748,-338.74931883,0.00038512,120]
[365232986,1749558910775,-1483.64442628,0.00038512,120]
[365232987,1749558910802,-250.0,0.00038512,120]
[365232988,1749558910828,-145000.0,0.00038512,120]
[365232989,1749558910856,-1593.95,0.00038512,120]
[365232990,1749558910884,-12865.65465762,0.00038512,120]
[365232991,1749558910913,-3659.71938114,0.00038512,120]
[365232992,1749558910942,-1500000.0,0.00038512,90]
[365232993,1749558910971,-497112.68274062,0.00038512,120]
[365232994,1749558911006,-2368.0,0.00038512,120]
[365232995,1749558911043,-500000.0,0.00038512,60]
[365232996,1749558911072,-526517.95,0.00038512,120]
[365232997,1749558911105,-1052.0,0.00038512,120]
[365232998,1749558911136,-439.09261302,0.00038512,120]
[365232999,1749558911166,-182.41884128,0.00038512,120]
[365233000,1749558911195,-501.39583598,0.00038512,120]
[365233001,1749558911223,-499.999999,0.00038512,120]
[365233002,1749558911251,-1406.76281016,0.00038512,120]
[365233003,1749558911280,-1801.52666528,0.00038512,120]
[365233004,1749558911500,1000.0,0.0002465,120]
[365233005,1749558918834,1000.0,0.0002465,120]
[365233006,1749558928602,1000.0,0.0002465,120]
[365233007,1749558935228,1000.0,0.0002465,120]
[365233008,1749558943017,1000.0,0.0002465,120]
[365233009,1749558952486,5000.0,0.0002465,120]
[365233010,1749558956735,4559.8535725,0.00038517,60]
[365233011,1749558970343,5000.0,0.0002465,120]
[365233012,1749558977109,150.0,0.0002,30]
[365233013,1749558977873,1784.0,0.00038517,120]
[365233014,1749558978008,5000.0,0.0002465,120]
[365233015,1749558990351,-161.85310669,0.00016042,2]
[365233016,1749558996014,-161.85310669,0.00016042,2]
[365233018,1749558998896,1000.0,0.00038517,120]
[365233019,1749559010627,-161.85310669,0.00016042,2]
[365233020,1749559011716,1000.0,0.00038517,60]
[365233021,1749559018816,10000.0,0.00038517,120]
[365233022,1749559024538,1000.0,0.00038517,60]
[365233023,1749559027377,-161.85310669,0.00016042,2]
[365233024,1749559029752,1000.0,0.00038517,120]
[365233025,1749559037381,1000.0,0.00038517,60]
[365233026,1749559040537,-161.85310669,0.00016042,2]
[365233027,1749559055766,-161.85310669,0.00016001,2]
[365233028,1749559070760,-366.4272568,0.00016001,2]
[365233029,1749559074631,-171.94691659,0.00016001,2]
[365233030,1749559076670,150.0,0.00038517,60]
[365233031,1749559076803,-299.77271992,0.00016001,2]
[365233032,1749559081579,131950.0,0.00038517,60]
[365233033,1749559098603,150.0,0.0002,30]
[365233034,1749559118918,377.946917,0.00015961,2]
[365233035,1749559132792,5000.0,0.00038517,120]
[365233036,1749559148866,400.28095016,0.00016,2]
[365233037,1749559164589,1176.83949892,0.00038517,60]
[365233038,1749559171352,150.0,0.00038517,60]
[365233039,1749559185307,5000.0,0.00038517,120]
[365233040,1749559209381,1110.0,0.00038517,60]
[365233041,1749559219879,150.0,0.0002,30]
[365233042,1749559223600,5682.67,0.00038502,120]
[365233043,1749559245732,1000.0,0.00038502,60]
[365233044,1749559270789,517.8,0.00019205,30]
[365233045,1749559293714,1000.0,0.00038502,60]
[365233046,1749559296316,60000.0,0.00038502,60]
[365233047,1749559311259,1000.0,0.00038502,60]
[365233048,1749559323370,1000.0,0.00038502,60]
[365233049,1749559341303,150.0,0.0002,30]
[365233050,1749559341644,323.70621338,0.00015942,2]
[365233051,1749559343713,1000.0,0.00038502,60]
[365233052,1749559370555,1500.0,0.00038502,60]
[365233053,1749559381184,117813.30309091,0.00038502,60]
[365233054,1749559401718,2993.27,0.00038502,60]
[365233055,1749559410657,371.99,0.00038502,60]
[365233056,1749559417835,117813.303,0.00038502,60]
[365233057,1749559420415,1333.0,0.00023233,120]
[365233058,1749559453497,643.26,0.00015726,2]
[365233059,1749559462876,150.0,0.0002,30]
[365233060,1749559482458,150.0,0.00016,5]
[365233061,1749559489004,1044.49840065,0.00024,120]
[365233062,1749559497488,117813.303,0.00038502,60]
[365233063,1749559513401,1032.0243179,0.00038502,60]
[365233064,1749559538934,117813.303,0.00038595,60]